fUST/lending_fUST_20240902
["ID","MTS","AMOUNT","RATE_DAILY","PERIOD"]
[336939019,1725252655950,-500.0,0.00025205,2]
[336939020,1725252655959,-500.0,0.00025205,2]
[336939021,1725252655968,-500.0,0.00025205,2]
[336939022,1725252655977,-509.28993497,0.00025205,2]
[336939023,1725252655987,-758.43,0.00025205,2]
[336939024,1725252655996,-500.0,0.00025205,2]
[336939025,1725252656005,-500.0,0.00025205,2]
[336939026,1725252656014,-500.0,0.00025205,2]
[336939027,1725252656024,-500.0,0.00025205,2]
[336939028,1725252656034,-500.0,0.00025205,2]
[336939029,1725252656044,-500.0,0.00025205,2]
[336939030,1725252656053,-537.85592579,0.00025205,2]
[336939031,1725252656252,-500.0,0.00024657,2]
[336939032,1725252656261,-212.54407421,0.00025205,2]
[336939033,1725252656270,-1127.17,0.00025205,2]
[336939034,1725252656279,-500.0,0.00025205,2]
[336939035,1725252656288,-500.0,0.00025205,2]
[336939036,1725252656297,-717.29,0.00025205,2]
[336939037,1725252656307,-500.0,0.00025205,2]
[336939038,1725252656316,-239.88253188,0.00025205,2]
[336939039,1725252656325,-612.5,0.00025205,2]
[336939040,1725252656334,-246.9832519,0.00025205,2]
[336939041,1725252656343,-500.0,0.00025205,2]
[336939042,1725252656353,-500.0,0.00025205,2]
[336939043,1725252656362,-504.32544795,0.00025205,2]
[336939044,1725252656371,-500.0,0.00025205,2]
[336939045,1725252656381,-500.0,0.00025205,2]
[336939046,1725252656390,-500.0,0.00025205,2]
[336939047,1725252656399,-500.0,0.00025205,2]
[336939048,1725252656409,-500.0,0.00025205,2]
[336939049,1725252656418,-500.0,0.00025205,2]
[336939050,1725252656427,-746.06,0.00025205,2]
[336939051,1725252656436,-500.0,0.00025205,2]
[336939052,1725252656445,-500.0,0.00025205,2]
[336939053,1725252656456,-1516.94,0.00025205,2]
[336939054,1725252656467,-276.5219725,0.00025205,2]
[336939055,1725252656500,39.27738694,0.00023469,2]
[336939056,1725252903829,4222.0,0.0002009,2]
[336939058,1725253125724,174.361345,0.00014247,2]
[336939062,1725253532662,-290.16114594,0.0002346,2]
[336939063,1725253552168,-1245.1779186,0.0002346,2]
[336939121,1725253622994,166.311925,0.00014247,2]
[336939122,1725253661981,-203.00816519,0.0002346,2]
[336939123,1725253662071,-167.23142627,0.0002346,2]
[336939124,1725253663990,-1062.08077679,0.0002346,2]
[336939128,1725253789287,-386.6813362,0.0002336,2]
[336939129,1725253789317,-4194.34056721,0.0002346,2]
[336939130,1725253789339,-123.05402906,0.00023469,2]
[336939131,1725253789363,-187.020562,0.00023524,2]
[336939133,1725253810274,-187.020562,0.00023831,2]
[336939134,1725253810295,-353.262123,0.00023836,2]
[336939135,1725253810316,-192.31584973,0.00023949,2]
[336939136,1725253810337,-187.020562,0.00024137,2]
[336939161,1725253831646,-187.020562,0.00024443,2]
[336939163,1725253831656,-311.23837714,0.00024557,2]
[336939164,1725253831667,-73.13787512,0.00024647,3]
[336939169,1725253837887,-233.25185518,0.00024647,3]
[336939170,1725253837900,-300.0,0.00024656,2]
[336939171,1725253837912,-505.03051663,0.00024657,2]
[336939172,1725253837922,-500.0,0.00024657,2]
[336939173,1725253837932,-500.0,0.00024657,2]
[336939174,1725253837944,-500.0,0.00024657,2]
[336939175,1725253837955,-500.0,0.00024657,2]
[336939176,1725253837964,-500.0,0.00024657,2]
[336939177,1725253837975,-500.0,0.00024657,2]
[336939178,1725253837984,-500.0,0.00024657,2]
[336939179,1725253837994,-500.0,0.00024657,2]
[336939180,1725253838004,-585.03900597,0.00024657,2]
[336939181,1725253838014,-500.0,0.00024657,2]
[336939182,1725253838024,-500.0,0.00024657,2]
[336939183,1725253838033,-500.0,0.00024657,2]
[336939184,1725253838043,-500.0,0.00024657,2]
[336939185,1725253838052,-533.07142725,0.00024657,2]
[336939186,1725253838062,-500.0,0.00024657,2]
[336939187,1725253838071,-213.17927534,0.00024657,2]
[336939188,1725253838080,-500.0,0.00024657,2]
[336939189,1725253838090,-500.0,0.00024657,2]
[336939190,1725253838099,-369.54532474,0.00024657,2]
[336939191,1725253838108,-500.0,0.00024657,2]
[336939192,1725253838118,-500.0,0.00024657,2]
[336939193,1725253838130,-500.0,0.00024657,2]
[336939194,1725253838139,-500.0,0.00024657,2]
[336939195,1725253838148,-501.46132272,0.00024657,2]
[336939196,1725253838158,-500.0,0.00024657,2]
[336939197,1725253838168,-500.0,0.00024657,2]
[336939198,1725253838178,-500.0,0.00024657,2]
[336939199,1725253838188,-500.0,0.00024657,2]
[336939200,1725253838197,-500.0,0.00024657,2]
[336939201,1725253838207,-504.75777711,0.00024657,2]
[336939202,1725253838217,-500.0,0.00024657,2]
[336939203,1725253838226,-500.0,0.00024657,2]
[336939204,1725253838236,-575.71,0.00024657,2]
[336939205,1725253838245,-500.0,0.00024657,2]
[336939206,1725253838255,-500.0,0.00024657,2]
[336939207,1725253838265,-500.0,0.00024657,2]
[336939208,1725253838275,-500.0,0.00024657,2]
[336939209,1725253838285,-500.0,0.00024657,2]
[336939210,1725253838294,-500.0,0.00024657,2]
[336939211,1725253838304,-501.53643517,0.00024657,2]
[336939212,1725253838314,-500.0,0.00024657,2]
[336939213,1725253838328,-500.0,0.00024657,2]
[336939214,1725253838337,-500.0,0.00024657,2]
[336939215,1725253838346,-500.0,0.00024657,2]
[336939216,1725253838355,-500.0,0.00024657,2]
[336939217,1725253838364,-500.0,0.00024657,2]
[336939218,1725253838374,-500.0,0.00024657,2]
[336939219,1725253838384,-500.0,0.00024657,2]
[336939220,1725253838394,-500.0,0.00024657,2]
[336939221,1725253838403,-500.0,0.00024657,2]
[336939222,1725253838413,-500.0,0.00024657,2]
[336939223,1725253838422,-503.75139708,0.00024657,2]
[336939224,1725253838433,-508.45873812,0.00024657,2]
[336939225,1725253838443,-500.0,0.00024657,2]
[336939226,1725253838453,-500.0,0.00024657,2]
[336939227,1725253838464,-500.0,0.00024657,2]
[336939228,1725253838473,-500.0,0.00024657,2]
[336939229,1725253838483,-500.0,0.00024657,2]
[336939230,1725253838492,-500.0,0.00024657,2]
[336939231,1725253838502,-500.0,0.00024657,2]
[336939232,1725253838512,-500.0,0.00024657,2]
[336939233,1725253838522,-550.49,0.00024657,2]
[336939234,1725253838532,-534.1,0.00024657,2]
[336939235,1725253838542,-500.0,0.00024657,2]
[336939236,1725253838552,-500.0,0.00024657,2]
[336939237,1725253838562,-500.0,0.00024657,2]
[336939238,1725253838572,-520.13,0.00024657,2]
[336939239,1725253838581,-500.0,0.00024657,2]
[336939240,1725253838591,-500.0,0.00024657,2]
[336939241,1725253838600,-500.0,0.00024657,2]
[336939242,1725253838611,-500.0,0.00024657,2]
[336939243,1725253838621,-500.0,0.00024657,2]
[336939244,1725253838633,-678.34,0.00024657,2]
[336939245,1725253838644,-500.0,0.00024657,2]
[336939246,1725253838653,-500.0,0.00024657,2]
[336939247,1725253838663,-525.38,0.00024657,2]
[336939248,1725253838672,-500.0,0.00024657,2]
[336939249,1725253838682,-500.0,0.00024657,2]
[336939250,1725253838692,-500.0,0.00024657,2]
[336939251,1725253838702,-500.0,0.00024657,2]
[336939252,1725253838724,-501.26837633,0.00024657,2]
[336939253,1725253838734,-395.57423842,0.00024657,2]
[336939254,1725253838744,-500.0,0.00024657,2]
[336939255,1725253838754,-500.0,0.00024657,2]
[336939256,1725253838763,-500.0,0.00024657,2]
[336939257,1725253838773,-503.96917444,0.00024657,2]
[336939258,1725253838783,-500.0,0.00024657,2]
[336939259,1725253838792,-500.0,0.00024657,2]
[336939260,1725253838801,-503.37539464,0.00024657,2]
[336939261,1725253838811,-500.0,0.00024657,2]
[336939262,1725253838821,-500.0,0.00024657,2]
[336939263,1725253838830,-500.0,0.00024657,2]
[336939264,1725253838839,-500.0,0.00024657,2]
[336939265,1725253838849,-500.0,0.00024657,2]
[336939266,1725253838859,-500.0,0.00024657,2]
[336939267,1725253838869,-500.0,0.00024657,2]
[336939268,1725253838881,-494.12628695,0.00024657,2]
[336939269,1725253838891,-500.0,0.00024657,2]
[336939270,1725253838903,-500.0,0.00024657,2]
[336939271,1725253838912,-500.0,0.00024657,2]
[336939272,1725253838922,-580.39382741,0.00024657,2]
[336939273,1725253838932,-500.0,0.00024657,2]
[336939274,1725253838943,-500.0,0.00024657,2]
[336939275,1725253838952,-500.0,0.00024657,2]
[336939276,1725253838964,-500.0,0.00024657,2]
[336939277,1725253838974,-500.0,0.00024657,2]
[336939278,1725253838987,-500.0,0.00024657,2]
[336939279,1725253838998,-500.0,0.00024657,2]
[336939280,1725253839008,-500.0,0.00024657,2]
[336939281,1725253839018,-500.0,0.00024657,2]
[336939282,1725253839027,-615.17,0.00024657,2]
[336939283,1725253839038,-500.0,0.00024657,2]
[336939284,1725253839048,-500.0,0.00024657,2]
[336939286,1725253839262,-500.0,0.00024657,2]
[336939287,1725253839277,-500.0,0.00024657,2]
[336939288,1725253839286,-500.0,0.00024657,2]
[336939289,1725253839295,-500.0,0.00024657,2]
[336939291,1725253839305,-500.0,0.00024657,2]
[336939292,1725253839314,-500.0,0.00024657,2]
[336939294,1725253839324,-500.0,0.00024657,2]
[336939295,1725253839335,-2861.46,0.00024657,2]
[336939296,1725253839345,-500.0,0.00024657,2]
[336939297,1725253839355,-500.0,0.00024657,2]
[336939298,1725253839366,-500.0,0.00024657,2]
[336939299,1725253839375,-500.0,0.00024657,2]
[336939300,1725253839385,-500.0,0.00024657,2]
[336939302,1725253839395,-500.0,0.00024657,2]
[336939303,1725253839405,-181.24101756,0.00024657,2]
[336939304,1725253839415,-500.0,0.00024657,2]
[336939305,1725253839424,-500.0,0.00024657,2]
[336939306,1725253839434,-500.0,0.00024657,2]
[336939307,1725253839444,-500.0,0.00024657,2]
[336939308,1725253839456,-500.0,0.00024657,2]
[336939310,1725253839465,-500.0,0.00024657,2]
[336939311,1725253839475,-500.0,0.00024657,2]
[336939312,1725253839484,-500.0,0.00024657,2]
[336939313,1725253839494,-280.63957312,0.00024657,2]
[336939314,1725253839503,-500.0,0.00024657,2]
[336939315,1725253839513,-505.10251526,0.00024657,2]
[336939316,1725253839523,-500.0,0.00024657,2]
[336939317,1725253839532,-500.0,0.00024657,2]
[336939318,1725253839541,-500.0,0.00024657,2]
[336939319,1725253839551,-500.0,0.00024657,2]
[336939320,1725253839560,-508.89,0.00024657,2]
[336939321,1725253839569,-500.0,0.00024657,2]
[336939322,1725253839579,-500.0,0.00024657,2]
[336939323,1725253839589,-500.0,0.00024657,2]
[336939324,1725253839599,-500.0,0.00024657,2]
[336939325,1725253839608,-500.0,0.00024657,2]
[336939326,1725253839618,-500.0,0.00024657,2]
[336939327,1725253839628,-948.65,0.00024657,2]
[336939328,1725253839637,-500.0,0.00024657,2]
[336939329,1725253839647,-500.0,0.00024657,2]
[336939330,1725253839657,-500.0,0.00024657,2]
[336939331,1725253839666,-688.48,0.00024657,2]
[336939332,1725253839676,-500.0,0.00024657,2]
[336939334,1725253839685,-500.0,0.00024657,2]
[336939336,1725253839694,-500.0,0.00024657,2]
[336939337,1725253839703,-500.0,0.00024657,2]
[336939338,1725253839712,-500.0,0.00024657,2]
[336939339,1725253839722,-500.0,0.00024657,2]
[336939340,1725253839731,-200.0,0.00024657,2]
[336939341,1725253839740,-500.0,0.00024657,2]
[336939342,1725253839749,-500.0,0.00024657,2]
[336939344,1725253839759,-500.0,0.00024657,2]
[336939346,1725253839769,-500.0,0.00024657,2]
[336939347,1725253839778,-500.0,0.00024657,2]
[336939348,1725253839788,-503.08585856,0.00024657,2]
[336939349,1725253839798,-500.0,0.00024657,2]
[336939350,1725253839807,-500.0,0.00024657,2]
[336939351,1725253839816,-500.0,0.00024657,2]
[336939352,1725253839825,-500.0,0.00024657,2]
[336939353,1725253839834,-500.0,0.00024657,2]
[336939354,1725253839844,-551.42,0.00024657,2]
[336939355,1725253839853,-500.0,0.00024657,2]
[336939356,1725253839862,-524.17558271,0.00024657,2]
[336939357,1725253839872,-500.0,0.00024657,2]
[336939358,1725253839883,-500.0,0.00024657,2]
[336939359,1725253839897,-502.52122468,0.00024657,2]
[336939360,1725253839911,-500.0,0.00024657,2]
[336939361,1725253839921,-808.25,0.00024657,2]
[336939362,1725253839930,-500.0,0.00024657,2]
[336939363,1725253839939,-500.0,0.00024657,2]
[336939364,1725253839950,-502.05100841,0.00024657,2]
[336939365,1725253839959,-500.0,0.00024657,2]
[336939366,1725253839969,-566.86701025,0.00024657,2]
[336939367,1725253839979,-500.0,0.00024657,2]
[336939368,1725253839990,-500.0,0.00024657,2]
[336939369,1725253840001,-500.0,0.00024657,2]
[336939370,1725253840012,-500.0,0.00024657,2]
[336939371,1725253840023,-500.0,0.00024657,2]
[336939372,1725253840033,-500.0,0.00024657,2]
[336939373,1725253840043,-261.52864841,0.00024657,2]
[336939374,1725253840052,-500.0,0.00024657,2]
[336939375,1725253840062,-500.0,0.00024657,2]
[336939376,1725253840073,-500.0,0.00024657,2]
[336939377,1725253840083,-500.0,0.00024657,2]
[336939378,1725253840094,-500.0,0.00024657,2]
[336939379,1725253840105,-500.0,0.00024657,2]
[336939380,1725253840114,-500.0,0.00024657,2]
[336939381,1725253840125,-500.0,0.00024657,2]
[336939382,1725253840135,-500.0,0.00024657,2]
[336939383,1725253840144,-503.21397657,0.00024657,2]
[336939384,1725253840154,-500.0,0.00024657,2]
[336939385,1725253840164,-500.0,0.00024657,2]
[336939386,1725253840173,-500.0,0.00024657,2]
[336939387,1725253840184,-500.0,0.00024657,2]
[336939388,1725253840194,-500.0,0.00024657,2]
[336939389,1725253840204,-500.0,0.00024657,2]
[336939390,1725253840213,-500.0,0.00024657,2]
[336939391,1725253840223,-500.0,0.00024657,2]
[336939392,1725253840232,-500.0,0.00024657,2]
[336939393,1725253840243,-500.0,0.00024657,2]
[336939394,1725253840253,-500.0,0.00024657,2]
[336939395,1725253840263,-503.74499091,0.00024657,2]
[336939396,1725253840274,-500.0,0.00024657,2]
[336939397,1725253840283,-500.0,0.00024657,2]
[336939399,1725253840293,-501.45025341,0.00024657,2]
[336939400,1725253840303,-500.0,0.00024657,2]
[336939401,1725253840312,-500.0,0.00024657,2]
[336939402,1725253840322,-500.0,0.00024657,2]
[336939403,1725253840331,-500.0,0.00024657,2]
[336939404,1725253840340,-500.0,0.00024657,2]
[336939405,1725253840350,-500.0,0.00024657,2]
[336939406,1725253840360,-500.0,0.00024657,2]
[336939407,1725253840370,-500.0,0.00024657,2]
[336939408,1725253840383,-500.0,0.00024657,2]
[336939409,1725253840392,-228.39434148,0.00024657,2]
[336939410,1725253840402,-500.0,0.00024657,2]
[336939411,1725253840412,-500.0,0.00024657,2]
[336939412,1725253840421,-500.0,0.00024657,2]
[336939413,1725253840430,-500.0,0.00024657,2]
[336939414,1725253840440,-825.8,0.00024657,2]
[336939415,1725253840450,-500.0,0.00024657,2]
[336939416,1725253840460,-726.75,0.00024657,2]
[336939417,1725253840469,-500.0,0.00024657,2]
[336939418,1725253840479,-500.0,0.00024657,2]
[336939419,1725253840488,-500.0,0.00024657,2]
[336939420,1725253840498,-500.0,0.00024657,2]
[336939421,1725253840508,-500.0,0.00024657,2]
[336939422,1725253840517,-500.0,0.00024657,2]
[336939423,1725253840527,-526.35037879,0.00024657,2]
[336939424,1725253840536,-500.0,0.00024657,2]
[336939425,1725253840546,-500.0,0.00024657,2]
[336939426,1725253840555,-717.61,0.00024657,2]
[336939427,1725253840566,-500.0,0.00024657,2]
[336939428,1725253840576,-500.0,0.00024657,2]
[336939429,1725253840585,-500.0,0.00024657,2]
[336939430,1725253840596,-566.57,0.00024657,2]
[336939431,1725253840607,-500.0,0.00024657,2]
[336939432,1725253840618,-290.40627938,0.00024657,2]
[336939433,1725253840630,-500.0,0.00024657,2]
[336939434,1725253840640,-251.9642432,0.00024657,2]
[336939435,1725253840650,-685.95,0.00024657,2]
[336939436,1725253840659,-500.0,0.00024657,2]
[336939437,1725253840669,-500.0,0.00024657,2]
[336939438,1725253840678,-500.0,0.00024657,2]
[336939439,1725253840688,-500.0,0.00024657,2]
[336939440,1725253840697,-308.68349162,0.00024657,2]
[336939441,1725253840706,-500.0,0.00024657,2]
[336939442,1725253840715,-500.0,0.00024657,2]
[336939443,1725253840724,-200.41400638,0.00024657,2]
[336939444,1725253840734,-500.0,0.00024657,2]
[336939445,1725253840743,-288.97975478,0.00024657,2]
[336939446,1725253840752,-585.40835845,0.00024657,2]
[336939447,1725253840761,-500.0,0.00024657,2]
[336939448,1725253840770,-500.0,0.00024657,2]
[336939449,1725253840779,-500.0,0.00024657,2]
[336939450,1725253840789,-500.0,0.00024657,2]
[336939451,1725253840798,-500.0,0.00024657,2]
[336939452,1725253840809,-500.0,0.00024657,2]
[336939453,1725253840819,-500.0,0.00024657,2]
[336939454,1725253840828,-500.0,0.00024657,2]
[336939455,1725253840839,-500.0,0.00024657,2]
[336939456,1725253840850,-500.0,0.00024657,2]
[336939457,1725253840861,-502.87759677,0.00024657,2]
[336939458,1725253840871,-500.0,0.00024657,2]
[336939459,1725253840881,-500.0,0.00024657,2]
[336939460,1725253840891,-500.0,0.00024657,2]
[336939461,1725253840904,-500.0,0.00024657,2]
[336939462,1725253840914,-495.0,0.00024657,2]
[336939463,1725253840923,-559.60149088,0.00024657,2]
[336939464,1725253840934,-500.0,0.00024657,2]
[336939465,1725253840946,-500.0,0.00024657,2]
[336939466,1725253840957,-500.0,0.00024657,2]
[336939467,1725253840967,-505.27028494,0.00024657,2]
[336939468,1725253840977,-500.0,0.00024657,2]
[336939469,1725253840988,-500.0,0.00024657,2]
[336939470,1725253840998,-500.0,0.00024657,2]
[336939471,1725253841007,-500.0,0.00024657,2]
[336939472,1725253841018,-500.0,0.00024657,2]
[336939473,1725253841028,-500.0,0.00024657,2]
[336939474,1725253841039,-508.24120198,0.00024657,2]
[336939475,1725253841049,-500.0,0.00024657,2]
[336939476,1725253841061,-585.46,0.00024657,2]
[336939477,1725253841070,-500.0,0.00024657,2]
[336939478,1725253841080,-896.52,0.00024657,2]
[336939479,1725253841090,-154.83952908,0.00024657,2]
[336939480,1725253841099,-500.0,0.00024657,2]
[336939481,1725253841109,-500.0,0.00024657,2]
[336939482,1725253841119,-500.0,0.00024657,2]
[336939483,1725253841129,-1342.75,0.00024657,2]
[336939484,1725253841138,-1080.2,0.00024657,2]
[336939485,1725253841147,-500.0,0.00024657,2]
[336939486,1725253841156,-500.0,0.00024657,2]
[336939487,1725253841167,-500.0,0.00024657,2]
[336939488,1725253841176,-500.0,0.00024657,2]
[336939489,1725253841185,-500.0,0.00024657,2]
[336939490,1725253841195,-1889.15,0.00024657,2]
[336939491,1725253841204,-500.0,0.00024657,2]
[336939492,1725253841213,-205.2154164,0.00024657,2]
[336939493,1725253841223,-500.0,0.00024657,2]
[336939494,1725253841232,-500.0,0.00024657,2]
[336939495,1725253841241,-500.0,0.00024657,2]
[336939496,1725253841263,-500.0,0.00024657,2]
[336939497,1725253841273,-1390.53,0.00024657,2]
[336939498,1725253841282,-500.0,0.00024657,2]
[336939499,1725253841292,-500.0,0.00024657,2]
[336939500,1725253841302,-505.7863791,0.00024657,2]
[336939501,1725253841311,-500.0,0.00024657,2]
[336939502,1725253841321,-500.0,0.00024657,2]
[336939503,1725253841330,-500.0,0.00024657,2]
[336939504,1725253841340,-500.0,0.00024657,2]
[336939505,1725253841350,-500.0,0.00024657,2]
[336939506,1725253841359,-500.0,0.00024657,2]
[336939507,1725253841369,-500.0,0.00024657,2]
[336939508,1725253841379,-1008.8,0.00024657,2]
[336939509,1725253841388,-500.0,0.00024657,2]
[336939510,1725253841399,-500.0,0.00024657,2]
[336939511,1725253841408,-714.88,0.00024657,2]
[336939512,1725253841418,-500.0,0.00024657,2]
[336939513,1725253841428,-500.0,0.00024657,2]
[336939514,1725253841438,-500.0,0.00024657,2]
[336939515,1725253841447,-500.0,0.00024657,2]
[336939516,1725253841456,-500.0,0.00024657,2]
[336939517,1725253841466,-500.0,0.00024657,2]
[336939518,1725253841475,-1450.33,0.00024657,2]
[336939519,1725253841485,-337.88855092,0.00024657,2]
[336939520,1725253841494,-500.0,0.00024657,2]
[336939521,1725253841504,-500.0,0.00024657,2]
[336939522,1725253841514,-2013.82,0.00024657,2]
[336939523,1725253841523,-500.0,0.00024657,2]
[336939524,1725253841533,-500.0,0.00024657,2]
[336939525,1725253841542,-500.0,0.00024657,2]
[336939526,1725253841551,-1088.29,0.00024657,2]
[336939527,1725253841561,-596.18,0.00024657,2]
[336939528,1725253841570,-500.0,0.00024657,2]
[336939529,1725253841579,-500.0,0.00024657,2]
[336939530,1725253841588,-500.0,0.00024657,2]
[336939531,1725253841598,-1613.9,0.00024657,2]
[336939532,1725253841608,-500.0,0.00024657,2]
[336939533,1725253841618,-9177.61,0.00024657,2]
[336939534,1725253841629,-500.0,0.00024657,2]
[336939535,1725253841641,-500.0,0.00024657,2]
[336939536,1725253841652,-994.14,0.00024657,2]
[336939537,1725253841662,-500.0,0.00024657,2]
[336939538,1725253841671,-1116.28,0.00024657,2]
[336939539,1725253841681,-1276.75,0.00024657,2]
[336939540,1725253841690,-500.0,0.00024657,2]
[336939541,1725253841700,-500.0,0.00024657,2]
[336939542,1725253841710,-762.95,0.00024657,2]
[336939543,1725253841720,-500.09695074,0.00024657,2]
[336939544,1725253841729,-500.0,0.00024657,2]
[336939545,1725253841738,-1249.31,0.00024657,2]
[336939546,1725253841748,-2147.82,0.00024657,2]
[336939547,1725253841758,-1001.58,0.00024657,2]
[336939548,1725253841769,-814.15,0.00024657,2]
[336939549,1725253841778,-1982.93,0.00024657,2]
[336939550,1725253841788,-402.5374694,0.00024657,2]
[336939551,1725253841798,-500.0,0.00024657,2]
[336939552,1725253841808,-500.0,0.00024657,2]
[336939553,1725253841818,-500.0,0.00024657,2]
[336939554,1725253841829,-1146.01,0.00024657,2]
[336939555,1725253841840,-500.0,0.00024657,2]
[336939556,1725253841851,-500.0,0.00024657,2]
[336939557,1725253841866,-711.23,0.00024657,2]
[336939558,1725253841877,-500.0,0.00024657,2]
[336939559,1725253841886,-334.16688174,0.00024657,2]
[336939560,1725253841899,-1431.84,0.00024657,2]
[336939561,1725253841908,-500.0,0.00024657,2]
[336939562,1725253841918,-992.83,0.00024657,2]
[336939563,1725253841928,-582.5826632,0.00024657,2]
[336939564,1725253841939,-500.0,0.00024657,2]
[336939565,1725253841948,-500.0,0.00024657,2]
[336939566,1725253841961,-500.0,0.00024657,2]
[336939567,1725253841971,-500.0,0.00024657,2]
[336939568,1725253841983,-773.76,0.00024657,2]
[336939569,1725253841994,-500.0,0.00024657,2]
[336939570,1725253842004,-500.0,0.00024657,2]
[336939571,1725253842014,-500.0,0.00024657,2]
[336939572,1725253842024,-500.0,0.00024657,2]
[336939573,1725253842034,-1253.18,0.00024657,2]
[336939574,1725253842044,-3734.39,0.00024657,2]
[336939575,1725253842054,-767.5,0.00024657,2]
[336939576,1725253842064,-500.0,0.00024657,2]
[336939577,1725253842074,-1698.05,0.00024657,2]
[336939578,1725253842084,-859.7,0.00024657,2]
[336939579,1725253842094,-500.0,0.00024657,2]
[336939580,1725253842104,-1206.09,0.00024657,2]
[336939581,1725253842114,-500.0,0.00024657,2]
[336939582,1725253842124,-500.0,0.00024657,2]
[336939583,1725253842134,-500.0,0.00024657,2]
[336939584,1725253842144,-500.0,0.00024657,2]
[336939585,1725253842155,-575.79,0.00024657,2]
[336939586,1725253842165,-1412.55,0.00024657,2]
[336939587,1725253842175,-500.0,0.00024657,2]
[336939588,1725253842185,-500.0,0.00024657,2]
[336939589,1725253842195,-1206.52,0.00024657,2]
[336939590,1725253842205,-515.3,0.00024657,2]
[336939591,1725253842215,-500.0,0.00024657,2]
[336939592,1725253842225,-500.0,0.00024657,2]
[336939593,1725253842236,-500.0,0.00024657,2]
[336939594,1725253842245,-1033.35,0.00024657,2]
[336939595,1725253842255,-985.07,0.00024657,2]
[336939596,1725253842266,-500.0,0.00024657,2]
[336939597,1725253842276,-540.93524496,0.00024657,2]
[336939598,1725253842286,-504.57409693,0.00024657,2]
[336939599,1725253842297,-500.0,0.00024657,2]
[336939601,1725253842307,-501.70628553,0.00024657,2]
[336939603,1725253842316,-721.38,0.00024657,2]
[336939604,1725253842326,-847.48,0.00024657,2]
[336939606,1725253842336,-500.0,0.00024657,2]
[336939608,1725253842345,-500.0,0.00024657,2]
[336939610,1725253842355,-500.0,0.00024657,2]
[336939611,1725253842365,-1150.78,0.00024657,2]
[336939612,1725253842377,-500.0,0.00024657,2]
[336939613,1725253842386,-500.0,0.00024657,2]
[336939614,1725253842395,-1052.29,0.00024657,2]
[336939615,1725253842405,-500.0,0.00024657,2]
[336939616,1725253842415,-1010.37,0.00024657,2]
[336939617,1725253842424,-500.0,0.00024657,2]
[336939618,1725253842434,-500.0,0.00024657,2]
[336939619,1725253842444,-500.0,0.00024657,2]
[336939620,1725253842453,-500.0,0.00024657,2]
[336939621,1725253842463,-500.0,0.00024657,2]
[336939622,1725253842472,-1014.85311854,0.00024657,2]
[336939623,1725253842482,-500.0,0.00024657,2]
[336939624,1725253842492,-597.21,0.00024657,2]
[336939625,1725253842502,-500.0,0.00024657,2]
[336939626,1725253842511,-500.0,0.00024657,2]
[336939627,1725253842520,-500.0,0.00024657,2]